fUSD/lending_fUSD_20260203
["ID","MTS","AMOUNT","RATE_DAILY","PERIOD"]
[404379215,1770086934488,5000.01,8.767e-05,2]
[404379216,1770086934512,5000.01,8.767e-05,2]
[404379217,1770086934537,5000.01,8.767e-05,2]
[404379218,1770086934563,5000.01,8.767e-05,2]
[404379219,1770086934885,10000.01,8.767e-05,2]
[404379220,1770086941585,300.0,8.766e-05,2]
[404379221,1770087001523,1200.0,8.766e-05,2]
[404379222,1770087003416,223.0,8.767e-05,2]
[404379233,1770087009018,5531.0,0.000133,5]
[404379235,1770087009253,798.12137364,8.767e-05,2]
[404379236,1770087009626,151.0,8.764e-05,2]
[404379238,1770087009990,151.0,8.764e-05,2]
[404379247,1770087013631,2176.88862636,8.767e-05,2]
[404379248,1770087013659,1477.27783238,8.767e-05,2]
[404379277,1770087028639,188.17333529,8.767e-05,2]
[404379299,1770087032178,-51677.89475563,8.767e-05,2]
[404379300,1770087032230,-454.69711136,8.767e-05,2]
[404379301,1770087032243,-2450.9437083,8.767e-05,2]
[404379302,1770087032254,-3711.58007246,8.767e-05,2]
[404379303,1770087032265,-2237.365707,8.767e-05,2]
[404379304,1770087032276,-3668.11136025,8.767e-05,2]
[404379305,1770087032337,-291.14115019,8.767e-05,2]
[404379306,1770087032349,-1217.37507571,8.767e-05,2]
[404379310,1770087038264,-7887.11604352,8.767e-05,2]
[404379311,1770087038276,-354.0347142,8.767e-05,2]
[404379312,1770087038321,-3295321.23228994,8.767e-05,2]
[404379313,1770087038330,-1573.99,8.767e-05,2]
[404379314,1770087038340,-273.3671,8.767e-05,2]
[404379315,1770087038349,-237.3167,8.767e-05,2]
[404379316,1770087038358,-736.45171924,8.824e-05,2]
[404379317,1770087038368,-300.0,8.824e-05,2]
[404379318,1770087038378,-150.0,8.84e-05,2]
[404379319,1770087038387,-300.0,8.864e-05,2]
[404379320,1770087038396,-300.0,8.864e-05,2]
[404379321,1770087038406,-300.0,8.864e-05,2]
[404379322,1770087038416,-250.0,8.881e-05,2]
[404379323,1770087038425,-356.46758943,8.881e-05,2]
[404379324,1770087038435,-10000.0,8.967e-05,2]
[404379325,1770087038444,-425240.257,8.967e-05,2]
[404379326,1770087038454,-33292.3487,8.967e-05,2]
[404379327,1770087038463,-10287.96,8.983e-05,2]
[404379328,1770087038473,-16889.00415249,9.199e-05,2]
[404379329,1770087038482,-4532.96,9.568e-05,2]
[404379330,1770087038491,-59481.04964323,9.636e-05,2]
[404379331,1770087038501,-999.99,9.636e-05,2]
[404379332,1770087038510,-4999.99,9.636e-05,2]
[404379333,1770087038519,-262164.78,9.636e-05,2]
[404379334,1770087038529,-499.99,9.636e-05,2]
[404379335,1770087038538,-1696.43,9.636e-05,2]
[404379336,1770087038548,-427.6,9.636e-05,2]
[404379337,1770087038557,-5489.88,9.636e-05,2]
[404379339,1770087038567,-5313.97,9.636e-05,2]
[404379341,1770087038579,-9999.99,9.636e-05,2]
[404379343,1770087038590,-1680.0,9.643e-05,2]
[404379345,1770087038599,-250.0,9.644e-05,2]
[404379346,1770087038609,-241.00287784,9.644e-05,2]
[404379349,1770087038619,-300.0,9.644e-05,2]
[404379350,1770087038629,-500.0,9.644e-05,2]
[404379352,1770087038638,-500.0,9.644e-05,2]
[404379354,1770087038647,-180.55756402,9.665e-05,2]
[404379356,1770087038658,-36317.0,9.668e-05,2]
[404379359,1770087038667,-255.0,9.753e-05,2]
[404379363,1770087038678,-250.0,9.754e-05,2]
[404379366,1770087038688,-222.38400694,9.847e-05,2]
[404379369,1770087038697,-150.99,9.863e-05,2]
[404379372,1770087038706,-150.99,9.864e-05,2]
[404379374,1770087038716,-9999.99,9.864e-05,2]
[404379376,1770087038725,-1553.53,9.864e-05,2]
[404379378,1770087038734,-9999.99,9.864e-05,2]
[404379379,1770087038744,-299.99,9.864e-05,2]
[404379382,1770087038754,-20008.26,9.864e-05,2]
[404379384,1770087038763,-9999.99,9.873e-05,2]
[404379385,1770087038772,-258.0,9.899e-05,2]
[404379387,1770087038782,-152.0,9.899e-05,2]
[404379389,1770087038792,-167.0,9.967e-05,2]
[404379392,1770087038801,-309.4435957,9.967e-05,2]
[404379394,1770087038810,-5498.21,9.998e-05,2]
[404379395,1770087038820,-1329.7,0.0001,2]
[404379398,1770087038830,-500.0,0.0001,2]
[404379400,1770087038840,-496.05232197,0.0001,2]
[404379401,1770087038849,-500.0,0.0001,2]
[404379404,1770087038859,-151.0,0.0001,2]
[404379406,1770087038868,-500.0,0.0001,2]
[404379408,1770087038878,-151.0,0.0001,2]
[404379410,1770087038887,-500.0,0.0001,2]
[404379412,1770087038897,-151.0,0.0001,2]
[404379414,1770087038906,-500.0,0.0001,2]
[404379416,1770087038915,-151.0,0.0001,2]
[404379418,1770087038925,-500.0,0.0001,2]
[404379420,1770087038934,-151.0,0.0001,2]
[404379422,1770087038943,-500.0,0.0001,2]
[404379424,1770087038954,-151.0,0.0001,2]
[404379426,1770087038963,-500.0,0.0001,2]
[404379427,1770087038974,-151.0,0.0001,2]
[404379429,1770087038984,-500.0,0.0001,2]
[404379431,1770087038994,-151.0,0.0001,2]
[404379434,1770087039003,-500.0,0.0001,2]
[404379436,1770087039015,-500.0,0.0001,2]
[404379438,1770087039025,-151.0,0.0001,2]
[404379440,1770087039035,-500.0,0.0001,2]
[404379442,1770087039044,-151.0,0.0001,2]
[404379444,1770087039054,-151.0,0.0001,2]
[404379446,1770087039064,-151.0,0.0001,2]
[404379448,1770087039073,-151.0,0.0001,2]
[404379450,1770087039083,-151.0,0.0001,2]
[404379452,1770087039093,-151.0,0.0001,2]
[404379454,1770087039103,-200.0,0.0001,2]
[404379456,1770087039112,-151.0,0.0001,2]
[404379458,1770087039121,-500.0,0.0001,2]
[404379460,1770087039131,-151.0,0.0001,2]
[404379462,1770087039140,-500.0,0.0001,2]
[404379464,1770087039149,-151.0,0.0001,2]
[404379466,1770087039158,-500.0,0.0001,2]
[404379468,1770087039167,-151.0,0.0001,2]
[404379470,1770087039176,-500.0,0.0001,2]
[404379472,1770087039187,-151.0,0.0001,2]
[404379474,1770087039196,-500.0,0.0001,2]
[404379476,1770087039206,-151.0,0.0001,2]
[404379478,1770087039215,-500.0,0.0001,2]
[404379480,1770087039225,-500.0,0.0001,2]
[404379482,1770087039235,-151.0,0.0001,2]
[404379484,1770087039246,-151.0,0.0001,2]
[404379486,1770087039255,-500.0,0.0001,2]
[404379488,1770087039264,-151.0,0.0001,2]
[404379490,1770087039274,-500.0,0.0001,2]
[404379492,1770087039284,-151.0,0.0001,2]
[404379495,1770087039304,-500.0,0.0001,2]
[404379497,1770087039314,-151.0,0.0001,2]
[404379499,1770087039325,-500.0,0.0001,2]
[404379501,1770087039334,-151.0,0.0001,2]
[404379503,1770087039344,-151.0,0.0001,2]
[404379506,1770087039353,-151.0,0.0001,2]
[404379508,1770087039363,-151.0,0.0001,2]
[404379510,1770087039373,-151.0,0.0001,2]
[404379512,1770087039381,-500.0,0.0001,2]
[404379514,1770087039391,-200.0,0.0001,2]
[404379516,1770087039400,-150.00806846,0.0001,2]
[404379518,1770087039409,-927.05931723,0.0001,2]
[404379520,1770087039418,-927.05931723,0.0001,2]
[404379522,1770087039427,-500.0,0.00010074,2]
[404379524,1770087039436,-500.0,0.00010074,2]
[404379526,1770087039445,-500.0,0.00010074,2]
[404379528,1770087039457,-500.0,0.00010074,2]
[404379530,1770087039467,-500.0,0.00010074,2]
[404379532,1770087039476,-503.99784735,0.00010074,2]
[404379534,1770087039485,-622.18622774,0.00010074,2]
[404379536,1770087039495,-500.0,0.00010074,2]
[404379538,1770087039504,-500.0,0.00010074,2]
[404379540,1770087039514,-500.0,0.00010074,2]
[404379542,1770087039522,-500.0,0.00010074,2]
[404379544,1770087039531,-500.0,0.00010074,2]
[404379546,1770087039540,-500.0,0.00010074,2]
[404379548,1770087039550,-500.0,0.00010074,2]
[404379550,1770087039559,-153.7070239,0.00010074,2]
[404379552,1770087039568,-500.0,0.00010074,2]
[404379553,1770087039579,-500.0,0.00010074,2]
[404379555,1770087039590,-500.0,0.00010074,2]
[404379557,1770087039600,-500.0,0.00010074,2]
[404379560,1770087039610,-412.57925422,0.00010074,2]
[404379562,1770087039620,-500.0,0.00010074,2]
[404379564,1770087039629,-500.0,0.00010074,2]
[404379593,1770087039927,-500.0,0.00010074,2]
[404379594,1770087039937,-500.0,0.00010074,2]
[404379595,1770087039946,-500.0,0.00010274,2]
[404379596,1770087039957,-1329.7,0.00010274,2]
[404379597,1770087039966,-22851.4176,0.00010349,2]
[404379599,1770087039976,-405.15,0.00010426,2]
[404379601,1770087039985,-342.68,0.00010519,2]
[404379603,1770087039994,-500.0,0.00010548,2]
[404379605,1770087040003,-1329.7,0.00010548,2]
[404379608,1770087040012,-200.0,0.00010548,2]
[404379610,1770087040021,-500.0,0.00010548,2]
[404379612,1770087040031,-200.0,0.00010548,2]
[404379613,1770087040040,-2351.0,0.00010607,2]
[404379615,1770087040058,-727.81084573,0.00010622,2]
[404379617,1770087040068,-1000.0,0.00010622,2]
[404379619,1770087040077,-1077.06010473,0.00010622,2]
[404379621,1770087040086,-1000.0,0.00010622,2]
[404379623,1770087040097,-1000.0,0.00010622,2]
[404379625,1770087040107,-1000.0,0.00010622,2]
[404379627,1770087040119,-1000.0,0.00010622,2]
[404379629,1770087040129,-1000.0,0.00010622,2]
[404379631,1770087040138,-1000.0,0.00010622,2]
[404379633,1770087040149,-1051.62801628,0.00010622,2]
[404379636,1770087040162,-347.37162909,0.00010622,2]
[404379638,1770087040174,-565.73255371,0.00010622,2]
[404379641,1770087040184,-507.89061165,0.00010622,2]
[404379643,1770087040194,-1000.0,0.00010622,2]
[404379645,1770087040205,-1000.0,0.00010622,2]
[404379647,1770087040216,-846.3919765,0.00010622,2]
[404379649,1770087040226,-1000.0,0.00010622,2]
[404379651,1770087040235,-1000.0,0.00010622,2]
[404379653,1770087040245,-1000.0,0.00010622,2]
[404379655,1770087040255,-1000.0,0.00010622,2]
[404379657,1770087040264,-433.0,0.00010728,2]
[404379659,1770087040274,-500.0,0.00010822,2]
[404379661,1770087040283,-1329.7,0.00010822,2]
[404379664,1770087040293,-4523.89889494,0.000109,2]
[404379667,1770087040303,-4523.8988949,0.000109,2]
[404379669,1770087040312,-500.0,0.00010959,2]
[404379671,1770087040322,-150.0,0.00010959,2]
[404379673,1770087040333,-1000.0,0.00010999,2]
[404379675,1770087040343,-405.15,0.00011005,2]
[404379677,1770087040354,-500.0,0.00011075,2]
[404379678,1770087040364,-150.0,0.00011075,2]
[404379681,1770087040375,-500.0,0.00011075,2]
[404379682,1770087040386,-488.0,0.00011075,2]
[404379685,1770087040396,-500.0,0.00011075,2]
[404379687,1770087040407,-594.0,0.00011075,2]
[404379689,1770087040417,-500.0,0.00011075,2]
[404379690,1770087040427,-924.0,0.00011075,2]
[404379693,1770087040438,-500.0,0.00011075,2]
[404379695,1770087040449,-788.0,0.00011075,2]
[404379697,1770087040460,-500.0,0.00011075,2]
[404379698,1770087040471,-500.0,0.00011075,2]
[404379700,1770087040481,-150.0,0.00011075,2]
[404379702,1770087040491,-771.0,0.00011075,2]
[404379704,1770087040501,-500.0,0.00011075,2]
[404379707,1770087040511,-161.04276973,0.00011075,2]
[404379709,1770087040521,-500.0,0.00011075,2]
[404379711,1770087040531,-2052.0,0.00011075,2]
[404379713,1770087040540,-500.0,0.00011075,2]
[404379715,1770087040550,-478.0,0.00011075,2]
[404379717,1770087040560,-500.0,0.00011075,2]
[404379719,1770087040571,-480.0,0.00011075,2]
[404379721,1770087040594,-500.0,0.00011075,2]
[404379723,1770087040606,-797.0,0.00011075,2]
[404379726,1770087040618,-500.0,0.00011075,2]
[404379727,1770087040631,-150.0,0.00011075,2]
[404379730,1770087040642,-150.0,0.00011075,2]
[404379731,1770087040654,-500.0,0.00011075,2]
[404379733,1770087040666,-150.0,0.00011075,2]
[404379736,1770087040677,-235.15813875,0.00011075,2]
[404379738,1770087040687,-500.0,0.00011075,2]
[404379740,1770087040699,-150.0,0.00011075,2]
[404379742,1770087040711,-150.22197028,0.00011075,2]
[404379744,1770087040721,-151.09578406,0.00011075,2]
[404379746,1770087040731,-150.0,0.00011075,2]
[404379748,1770087040741,-500.0,0.00011075,2]
[404379750,1770087040752,-500.0,0.00011075,2]
[404379752,1770087040762,-166.11436406,0.00011075,2]
[404379754,1770087040772,-150.0,0.00011075,2]
[404379756,1770087040783,-150.25172544,0.00011075,2]
[404379758,1770087040793,-152.15606364,0.00011075,2]
[404379760,1770087040803,-151.84606422,0.00011075,2]
[404379762,1770087040814,-500.0,0.00011096,2]
[404379764,1770087040824,-1329.7,0.00011096,2]
[404379766,1770087040835,-200.0,0.00011096,2]
[404379768,1770087040845,-500.0,0.00011096,2]
[404379770,1770087040855,-200.0,0.00011096,2]
[404379772,1770087040866,-15631.42574414,0.00011098,2]
[404379774,1770087040878,-54188.06354739,0.00011099,2]
[404379776,1770087040890,-54188.06354739,0.00011099,2]
[404379778,1770087040900,-54188.06354739,0.00011099,2]
[404379780,1770087040913,-54188.06354739,0.00011099,2]
[404379782,1770087040924,-54188.06354739,0.00011099,2]
[404379784,1770087040934,-54188.06354739,0.00011099,2]
[404379787,1770087040945,-54188.06354739,0.00011099,2]
[404379789,1770087040957,-60509.61606239,0.00011099,2]
[404379791,1770087040967,-60509.6160623,0.00011099,2]
[404379793,1770087040980,-60509.6160623,0.00011099,2]
[404379795,1770087040992,-60509.6160623,0.00011099,2]
[404379797,1770087041004,-60509.6160623,0.00011099,2]
[404379799,1770087041015,-60509.6160623,0.00011099,2]
[404379802,1770087041029,-60509.6160623,0.00011099,2]
[404379804,1770087041040,-500.0,0.0001113,2]
[404379806,1770087041051,-150.0,0.0001113,2]
[404379809,1770087041066,-500.0,0.0001113,2]
[404379812,1770087041086,-488.0,0.0001113,2]
[404379815,1770087041096,-500.0,0.0001113,2]
[404379817,1770087041105,-594.0,0.0001113,2]
[404379819,1770087041116,-500.0,0.0001113,2]
[404379821,1770087041126,-924.0,0.0001113,2]
[404379823,1770087041137,-500.0,0.0001113,2]
[404379825,1770087041147,-500.0,0.0001113,2]
[404379827,1770087041157,-788.0,0.0001113,2]
[404379829,1770087041167,-500.0,0.0001113,2]
[404379831,1770087041176,-150.0,0.0001113,2]
[404379833,1770087041188,-771.0,0.0001113,2]
[404379835,1770087041198,-500.40130265,0.0001113,2]
[404379837,1770087041208,-500.0,0.0001113,2]
[404379839,1770087041219,-2052.0,0.0001113,2]
[404379841,1770087041229,-500.0,0.0001113,2]
[404379842,1770087041239,-500.0,0.0001113,2]
[404379845,1770087041249,-480.0,0.0001113,2]
[404379847,1770087041259,-478.0,0.0001113,2]
[404379849,1770087041269,-500.0,0.0001113,2]
[404379851,1770087041278,-797.0,0.0001113,2]
[404379853,1770087041288,-500.0,0.0001113,2]
[404379855,1770087041299,-500.0,0.0001113,2]
[404379857,1770087041311,-150.0,0.0001113,2]
[404379859,1770087041321,-500.0,0.0001113,2]
[404379861,1770087041331,-150.0,0.0001113,2]
[404379863,1770087041342,-150.47155798,0.0001113,2]
[404379865,1770087041351,-500.0,0.0001113,2]
[404379867,1770087041360,-500.0,0.0001113,2]
[404379868,1770087041370,-150.0,0.0001113,2]
[404379871,1770087041382,-1500.0,0.0001117,2]
[404379873,1770087041393,-1500.0,0.0001117,2]
[404379875,1770087041403,-1085.6983119,0.0001117,2]
[404379877,1770087041413,-1500.0,0.0001117,2]
[404379879,1770087041423,-1500.0,0.0001117,2]
[404379881,1770087041435,-1500.0,0.0001117,2]
[404379883,1770087041449,-1509.37664533,0.0001117,2]
[404379885,1770087041459,-1500.0,0.0001117,2]
[404379887,1770087041469,-1500.0,0.0001117,2]
[404379889,1770087041481,-1500.0,0.0001117,2]
[404379891,1770087041491,-1500.0,0.0001117,2]
[404379893,1770087041502,-1500.0,0.0001117,2]
[404379895,1770087041513,-1500.0,0.0001117,2]
[404379897,1770087041524,-500.0,0.00011185,2]
[404379899,1770087041535,-150.0,0.00011185,2]
[404379901,1770087041546,-500.0,0.00011185,2]
[404379903,1770087041556,-488.0,0.00011185,2]
[404379905,1770087041566,-500.0,0.00011185,2]
[404379907,1770087041577,-594.0,0.00011185,2]
[404379909,1770087041589,-500.0,0.00011185,2]
[404379911,1770087041598,-924.0,0.00011185,2]
[404379913,1770087041609,-328.76402702,0.00011185,2]
[404379915,1770087041619,-157.18184791,0.00011185,2]
[404379917,1770087041629,-788.0,0.00011185,2]
[404379919,1770087041638,-500.0,0.00011185,2]
[404379921,1770087041648,-150.61467215,0.00011185,2]
[404379923,1770087041658,-771.0,0.00011185,2]
[404379925,1770087041667,-2052.0,0.00011185,2]
[404379927,1770087041677,-500.0,0.00011185,2]
[404379929,1770087041687,-500.0,0.00011185,2]
[404379931,1770087041696,-500.0,0.00011185,2]
[404379933,1770087041707,-478.0,0.00011185,2]
[404379935,1770087041716,-480.0,0.00011185,2]
[404379937,1770087041726,-500.0,0.00011185,2]
[404379939,1770087041735,-797.0,0.00011185,2]
[404379941,1770087041744,-500.0,0.00011185,2]
[404379943,1770087041753,-500.0,0.00011185,2]
[404379945,1770087041763,-166.64459903,0.00011185,2]
[404379947,1770087041772,-249.274,0.00011185,2]
[404379949,1770087041781,-150.0,0.00011185,2]
[404379951,1770087041792,-500.0,0.00011185,2]
[404379953,1770087041801,-500.0,0.00011185,2]
[404379955,1770087041810,-150.0,0.00011185,2]
[404379957,1770087041820,-500.0,0.00011239,2]
[404379959,1770087041833,-283.86381336,0.00011239,2]
[404379961,1770087041842,-500.0,0.00011239,2]
[404379964,1770087041853,-488.0,0.00011239,2]
[404379966,1770087041862,-500.0,0.00011239,2]
[404379968,1770087041871,-594.0,0.00011239,2]
[404379970,1770087041880,-500.0,0.00011239,2]
[404379972,1770087041890,-924.0,0.00011239,2]
[404379974,1770087041899,-788.0,0.00011239,2]
[404379976,1770087041909,-500.0,0.00011239,2]
[404379978,1770087041919,-771.0,0.00011239,2]
[404379979,1770087041929,-2052.0,0.00011239,2]
[404379982,1770087041938,-500.0,0.00011239,2]
[404379983,1770087041948,-500.0,0.00011239,2]
[404379985,1770087041958,-500.0,0.00011239,2]
[404379986,1770087041967,-478.0,0.00011239,2]
[404379987,1770087041976,-480.0,0.00011239,2]
[404379988,1770087041991,-500.0,0.00011239,2]
[404379989,1770087042004,-797.0,0.00011239,2]
[404379990,1770087042017,-500.0,0.00011239,2]
[404379992,1770087042030,-500.0,0.00011239,2]
[404379995,1770087042040,-150.0,0.00011239,2]
[404379997,1770087042052,-500.0,0.00011239,2]
[404379999,1770087042065,-500.0,0.00011239,2]
[404380002,1770087042076,-150.0,0.00011239,2]
[404380004,1770087042089,-60509.6160623,0.00011257,2]
[404380006,1770087042101,-500.0,0.00011294,2]
[404380009,1770087042115,-500.0,0.00011294,2]
[404380011,1770087042127,-488.0,0.00011294,2]
[404380014,1770087042139,-500.0,0.00011294,2]
[404380016,1770087042150,-594.0,0.00011294,2]
[404380018,1770087042160,-500.0,0.00011294,2]
[404380020,1770087042172,-924.0,0.00011294,2]
[404380023,1770087042184,-788.0,0.00011294,2]
[404380025,1770087042196,-500.0,0.00011294,2]
[404380028,1770087042209,-771.0,0.00011294,2]
[404380030,1770087042222,-2052.0,0.00011294,2]
[404380032,1770087042235,-500.0,0.00011294,2]
[404380035,1770087042248,-500.0,0.00011294,2]
[404380037,1770087042260,-500.0,0.00011294,2]
[404380039,1770087042271,-478.0,0.00011294,2]
[404380042,1770087042284,-480.0,0.00011294,2]
[404380044,1770087042296,-500.0,0.00011294,2]
[404380046,1770087042307,-797.0,0.00011294,2]
[404380049,1770087042318,-500.0,0.00011294,2]
[404380051,1770087042331,-503.79478241,0.00011294,2]
[404380054,1770087042341,-215.80780147,0.00011294,2]
[404380056,1770087042354,-500.0,0.00011294,2]
[404380058,1770087042366,-500.0,0.00011294,2]
[404380061,1770087042380,-293.83062922,0.00011294,2]
[404380063,1770087042393,-507.03032362,0.00011349,2]
[404380066,1770087042405,-500.0,0.00011349,2]
[404380068,1770087042418,-488.0,0.00011349,2]
[404380070,1770087042428,-500.0,0.00011349,2]
[404380072,1770087042438,-594.0,0.00011349,2]
[404380075,1770087042450,-500.0,0.00011349,2]
[404380077,1770087042461,-924.0,0.00011349,2]
[404380080,1770087042476,-788.0,0.00011349,2]
[404380082,1770087042488,-500.0,0.00011349,2]
[404380084,1770087042498,-771.0,0.00011349,2]
[404380086,1770087042509,-2052.0,0.00011349,2]
[404380088,1770087042520,-500.0,0.00011349,2]
[404380091,1770087042531,-500.0,0.00011349,2]
[404380093,1770087042545,-500.0,0.00011349,2]
[404380095,1770087042557,-478.0,0.00011349,2]
[404380099,1770087042577,-480.0,0.00011349,2]
[404380101,1770087042597,-500.0,0.00011349,2]
[404380103,1770087042608,-797.0,0.00011349,2]
[404380106,1770087042621,-500.0,0.00011349,2]
[404380108,1770087042635,-500.0,0.00011349,2]
[404380110,1770087042647,-500.0,0.00011349,2]
[404380113,1770087042660,-150.00806846,0.00011351,2]
[404380115,1770087042672,-500.0,0.0001137,2]
[404380118,1770087042685,-1329.7,0.0001137,2]
[404380120,1770087042697,-4523.8988949,0.00011386,2]
[404380122,1770087042711,-500.0,0.00011404,2]
[404380125,1770087042724,-488.0,0.00011404,2]
[404380127,1770087042738,-158.48775594,0.00011404,2]
[404380130,1770087042752,-594.0,0.00011404,2]
[404380132,1770087042765,-565.0,0.00011404,2]
[404380135,1770087042778,-924.0,0.00011404,2]
[404380137,1770087042790,-788.0,0.00011404,2]
[404380140,1770087042810,-500.0,0.00011404,2]
[404380143,1770087042825,-771.0,0.00011404,2]
[404380145,1770087042838,-2052.0,0.00011404,2]
[404380147,1770087042850,-500.0,0.00011404,2]
[404380149,1770087042862,-332.00757467,0.00011404,2]
[404380151,1770087042874,-500.0,0.00011404,2]
[404380153,1770087042886,-478.0,0.00011404,2]
[404380155,1770087042897,-480.0,0.00011404,2]
[404380157,1770087042908,-500.0,0.00011404,2]
[404380159,1770087042920,-797.0,0.00011404,2]
[404380161,1770087042932,-500.0,0.00011404,2]
[404380163,1770087042944,-500.0,0.00011404,2]
[404380165,1770087042956,-500.0,0.00011404,2]
[404380168,1770087042967,-500.0,0.00011459,2]
[404380170,1770087042979,-488.0,0.00011459,2]
[404380172,1770087042990,-594.0,0.00011459,2]
[404380174,1770087043001,-924.0,0.00011459,2]
[404380176,1770087043012,-788.0,0.00011459,2]
[404380178,1770087043024,-500.0,0.00011459,2]
[404380180,1770087043036,-771.0,0.00011459,2]
[404380182,1770087043047,-2052.0,0.00011459,2]
[404380184,1770087043058,-288.3862383,0.00011459,2]
[404380186,1770087043070,-500.0,0.00011459,2]
[404380188,1770087043081,-478.0,0.00011459,2]
[404380190,1770087043093,-480.0,0.00011459,2]
[404380192,1770087043103,-500.0,0.00011459,2]
[404380194,1770087043114,-797.0,0.00011459,2]
[404380196,1770087043125,-500.0,0.00011459,2]
[404380198,1770087043137,-630.77068013,0.00011459,2]
[404380200,1770087043149,-500.0,0.00011459,2]
[404380202,1770087043160,-370.03132092,0.00011513,2]
[404380204,1770087043171,-488.0,0.00011513,2]
[404380206,1770087043183,-594.0,0.00011513,2]
[404380208,1770087043194,-924.0,0.00011513,2]
[404380210,1770087043205,-788.0,0.00011513,2]
[404380212,1770087043216,-500.0,0.00011513,2]
[404380214,1770087043227,-771.0,0.00011513,2]
[404380216,1770087043238,-2052.0,0.00011513,2]
[404380218,1770087043249,-500.0,0.00011513,2]
[404380220,1770087043260,-478.0,0.00011513,2]
[404380222,1770087043273,-480.0,0.00011513,2]
[404380224,1770087043283,-500.0,0.00011513,2]
[404380226,1770087043295,-797.0,0.00011513,2]
[404380228,1770087043306,-500.0,0.00011513,2]
[404380230,1770087043316,-500.0,0.00011513,2]
[404380232,1770087043328,-488.0,0.00011568,2]
[404380234,1770087043339,-594.0,0.00011568,2]
[404380236,1770087043351,-924.0,0.00011568,2]
[404380238,1770087043362,-788.0,0.00011568,2]
[404380240,1770087043373,-500.0,0.00011568,2]
[404380242,1770087043383,-771.0,0.00011568,2]
[404380244,1770087043395,-2052.0,0.00011568,2]
[404380246,1770087043406,-500.0,0.00011568,2]
[404380248,1770087043417,-478.0,0.00011568,2]
[404380250,1770087043429,-480.0,0.00011568,2]
[404380252,1770087043440,-219.38751625,0.00011568,2]
[404380254,1770087043452,-797.0,0.00011568,2]
[404380257,1770087043468,-500.0,0.00011568,2]
[404380259,1770087043481,-500.0,0.00011568,2]
[404380261,1770087043494,-405.15,0.00011584,2]
[404380264,1770087043506,-250.0,0.00011584,2]
[404380266,1770087043519,-200.0,0.00011597,2]
[404380268,1770087043531,-150.0,0.00011597,2]
[404380270,1770087043543,-60509.6160623,0.00011609,2]
[404380272,1770087043555,-488.0,0.00011623,2]
[404380274,1770087043568,-594.0,0.00011623,2]
[404380276,1770087043581,-924.0,0.00011623,2]
[404380279,1770087043594,-788.0,0.00011623,2]
[404380281,1770087043606,-500.0,0.00011623,2]
[404380283,1770087043618,-771.0,0.00011623,2]
[404380285,1770087043631,-2052.0,0.00011623,2]
[404380287,1770087043643,-500.0,0.00011623,2]
[404380289,1770087043656,-478.0,0.00011623,2]
[404380292,1770087043668,-480.0,0.00011623,2]
[404380294,1770087043680,-797.0,0.00011623,2]
[404380296,1770087043692,-500.0,0.00011623,2]
[404380297,1770087043704,-500.0,0.00011623,2]
[404380301,1770087043715,-500.0,0.00011644,2]